Cogmind - Beta 13 @@@ ROGUE MODE // 2024.05.03 @ 14:48:39 Player: void Result: Destroyed self with Fission Core chain reaction Performance ------------- Evolutions (0) 0 Regions Visited (4) 800 Robots Destroyed (16) 80 Value Destroyed (354) 354 Prototype IDs (23) 460 Alien Tech Used (0) 0 Bonus (300) 300 TOTAL SCORE: 1994 Bonus ------- Aligned with FarCom 300 Cogmind --------- Core Integrity 0/250 Matter 257/300 Energy 118/290 System Corruption 2% Temperature Cool (68) Movement Core (700) Ox13 Location -9/Mines Parts ------- > --- POWER (1) -------- Improved Deuterium Engine > --- PROPULSION (2) --- (None) > --- UTILITY (2) ------ Large Storage Unit > --- WEAPON (2) ------- Improved EM Pulse Cannon EMP Blaster > --- INVENTORY (15) --- Ion Engine Fission Core Heat Sink Seismic Detector Modified TNC Weapon Cycler Cloak of Protection Medium Reflective Plating Medium Laser Chainsword Peak State ------------ > --- POWER ------------ Improved Deuterium Engine > --- PROPULSION ------- Aluminum Leg Aluminum Leg > --- UTILITY ---------- Large Storage Unit Sensor Array > --- WEAPON ----------- Medium Laser Small Laser > --- INVENTORY -------- Ion Engine Fission Core Fission Core Heat Sink Seismic Detector Modified TNC Weapon Cycler Cloak of Protection Improved EM Pulse Cannon EMP Blaster Grenade Launcher Chainsword [Rating: 14] Favorites ----------- Power Ion Engine Engine Ion Engine Propulsion Light Treads Treads Light Treads Leg Aluminum Leg Utility Seismic Detector Device Seismic Detector Storage Large Storage Unit Protection Light Armor Plating Weapon Light Assault Rifle Energy Gun Small Laser Energy Cannon Improved EM Pulse Cannon Ballistic Gun Light Assault Rifle Launcher Grenade Launcher Build | -11 -10 -10 -10 -9 ------- Run | Yrd Mat Min Exi Min Slots Evolved . | . . . . . Power . | . . . . . Propulsion . | . . . . . Utility . | . . . . . Weapon . | . . . . . Parts Attached 23 | 7 1 . 1 14 Power 3 | 1 . . . 2 Engine 3 | 1 . . . 2 Core . | . . . . . Reactor . | . . . . . Propulsion 4 | 2 . . . 2 Treads 2 | 2 . . . . Leg 2 | . . . . 2 Wheel . | . . . . . Hover . | . . . . . Flight . | . . . . . Utility 6 | 2 1 . 1 2 Device 2 | 1 . . . 1 Storage 3 | 1 1 . 1 . Processor . | . . . . . Hackware . | . . . . . Protection 1 | . . . . 1 Artifact . | . . . . . Weapon 10 | 2 . . . 8 Energy Gun 3 | . . . . 3 Energy Cannon 1 | . . . . 1 Ballistic Gun 2 | 2 . . . . Ballistic Cannon . | . . . . . Launcher 4 | . . . . 4 Special Weapon . | . . . . . Impact Weapon . | . . . . . Slashing Weapon . | . . . . . Piercing Weapon . | . . . . . Special Melee Weapon . | . . . . . Unidentified Prototypes . | . . . . . Parts Lost 10 | . . . . 10 Power 1 | . . . . 1 Propulsion 4 | . . . . 4 Utility 1 | . . . . 1 Weapon 4 | . . . . 4 Highest Loss Streak 5 | . . . . 5 To Critical Strikes . | . . . . . Average Slot Usage (%) 98 | . 100 100 100 93 Engine 13 | . 14 14 14 13 Treads 20 | . 28 28 28 1 Leg 6 | . . . . 23 Device 13 | . 14 14 14 12 Storage 14 | . 14 14 14 14 Energy Gun 6 | . . . . 22 Ballistic Gun 20 | . 28 28 28 . Naked Turns . | . . . . . Heaviest Build 35 | 14 19 19 29 35 Greatest Support 40 | 40 40 40 40 40 Greatest Overweight (x) 10 | 3 . . . 10 Average Overweight (x) . | . . . . 1 Largest Inventory Capacity 15 | 8 10 10 15 15 Average Capacity 12 | 7 9 10 13 15 Most Carried 13 | 3 9 10 11 13 Average Carried 8 | 1 5 9 9 10 Final Capacity 15 | 8 10 10 15 15 Final Carried 11 | 3 9 10 11 10 Class Distribution -------------------- 76% | Mutant 23% | Skirmisher Dominant Class ---------------- Mutant | -10/Materials Mutant | -10/Mines Mutant | -10/Exiles Skirmisher | -9/Mines Resources | -11 -10 -10 -10 -9 ----------- Run | Yrd Mat Min Exi Min Matter Collected 557 | 188 240 4 . 125 Remotely . | . . . . . Salvage Created 555 | 149 251 . . 155 Parts 32 | 8 16 . . 8 Haulers Intercepted . | . . . . . Recyclers Shooed . | . . . . . Parts Field Recycled . | . . . . . Retrieved Matter . | . . . . . Parts Self-Destructed . | . . . . . Prevented . | . . . . . Kills | -11 -10 -10 -10 -9 ------- Run | Yrd Mat Min Exi Min Combat Hostiles Destroyed 16 | . 10 . . 6 Guns 11 | . 10 . . 1 AOE 5 | . . . . 5 Classes Destroyed 6 | 2 2 . . 2 Tunneler 2 | 2 . . . . Recycler 1 | 1 . . . . Swarmer 6 | . 6 . . . Grunt 6 | . 4 . . 2 Duelist 1 | . . . . 1 Assembled 3 | . . . . 3 Best Kill Streak 10 | 3 10 . . 3 Combat Bots Only 10 | . 10 . . 3 Max Kills in Single Turn 2 | 1 1 . . 2 Gunslinging . | . . . . . Exploded 2 | . . . . 2 Melee . | . . . . . Uniques/NPCs Destroyed . | . . . . . Combat | -11 -10 -10 -10 -9 -------- Run | Yrd Mat Min Exi Min Hostile Shots Fired 116 | . 39 . . 77 Missed 31 | . 6 . . 25 Damage Taken 1419 | . 387 . . 1032 Core 253 | . 19 . . 234 Absorbed by Shields . | . . . . . Core Remaining (%) 100 | 100 . . . . Volleys Fired 56 | 11 27 . . 18 Largest 2 | 2 2 . . 2 Hottest 102 | 40 40 . . 102 Shots Fired 105 | 22 54 . . 29 Gun 96 | 22 54 . . 20 Cannon 2 | . . . . 2 Launcher 7 | . . . . 7 Special . | . . . . . Kinetic 82 | 22 54 . . 6 Thermal 14 | . . . . 14 Explosive 5 | . . . . 5 Electromagnetic 4 | . . . . 4 Robot Hit Streak 10 | 7 10 . . 7 Robot Miss Streak 3 | 2 2 . . 3 Penetration Max . | . . . . . Secondary Targets 1 | . 1 . . . Max Gunslinging Chain 1 | . 1 . . . Shots Hit Robots 73 | 16 41 . . 16 Core Hits 36 | 5 20 . . 11 Critical Kills 1 | . 1 . . . Critical Parts Destroyed 1 | 1 . . . . Critical Strikes 2 | 1 1 . . . Destroy 2 | 1 1 . . . Melee Attacks . | . . . . . Impact . | . . . . . Slashing . | . . . . . Piercing . | . . . . . Sneak Attacks . | . . . . . Combat Hostiles . | . . . . . Follow-up Attacks . | . . . . . Damage Inflicted 959 | 152 419 . . 388 Guns 677 | 152 419 . . 106 Cannons 48 | . . . . 48 Explosions 234 | . . . . 234 Melee . | . . . . . Ramming . | . . . . . Kinetic 592 | 152 419 . . 21 Thermal 85 | . . . . 85 Explosive 167 | . . . . 167 Electromagnetic 115 | . . . . 115 Impact . | . . . . . Slashing . | . . . . . Piercing . | . . . . . Highest Corruption 2 | . . . . 2 Average Corruption 2 | . . . . 2 Corruption Purged . | . . . . . Corruption Blocked . | . . . . . Effects 1 | . . . . 1 Message Errors 1 | . . . . 1 Overload Shots . | . . . . . Overflow Damage 16 | . . . . 16 Projectiles . | . . . . . Explosions 16 | . . . . 16 Melee . | . . . . . Knockbacks . | . . . . . Impact . | . . . . . Kinetic . | . . . . . Secondary . | . . . . . Self-Inflicted Damage 218 | . . . . 218 Shots 7 | . . . . 7 Rammed . | . . . . . Targets Rammed . | . . . . . Kicked . | . . . . . Crushed . | . . . . . Highest Temperature 114 | . 18 . . 114 Average Temperature 22 | . 8 . . 27 Received Heat Transfer 506 | . 150 . . 356 Siege Activations . | . . . . . Robots Corrupted . | . . . . . Combat Hostiles . | . . . . . Parts Fried . | . . . . . Impact Corruptions . | . . . . . Robots Melted . | . . . . . Combat Hostiles . | . . . . . Parts Melted . | . . . . . Heat Transferred 199 | . . . . 199 Parts Sabotaged . | . . . . . Parts Stolen . | . . . . . Parts Stripped . | . . . . . Power Chain Reactions 1 | . . . . 1 Alert | -11 -10 -10 -10 -9 ------- Run | Yrd Mat Min Exi Min Peak Influence 322 | 15 322 47 . 58 Initial 47 | . 9 47 . . Average 73 | 4 159 47 . 34 Maximum Alert Level 1 | . 1 . . . Low Security (%) 86 | 100 56 100 . 100 Level 1 13 | . 43 . . . Level 2 . | . . . . . Level 3 . | . . . . . Level 4 . | . . . . . Level 5 . | . . . . . High Security . | . . . . . Max Security . | . . . . . Squads Dispatched 1 | . . . . 1 Investigation 1 | . . . . 1 Extermination . | . . . . . Reinforcement . | . . . . . Assault . | . . . . . Garrison . | . . . . . Intercept . | . . . . . Searches Triggered . | . . . . . Construction Impeded . | . . . . . Haulers Reinforced . | . . . . . Active Scanning Responses . | . . . . . Cargo Convoy Interrupts . | . . . . . Stealth | -11 -10 -10 -10 -9 --------- Run | Yrd Mat Min Exi Min Distress Signals 1 | . 1 . . . Communications Jammed . | . . . . . Distress Signals . | . . . . . Times Spotted 27 | . 16 . . 11 Peak Tracking Total 10 | . 10 . . 4 Tactical Retreats 2 | . 2 . . . Traps | -11 -10 -10 -10 -9 ------- Run | Yrd Mat Min Exi Min Traps Triggered 1 | . 1 . . . Indirectly . | . . . . . Trap Hack Attempts . | . . . . . Triggered . | . . . . . Disarmed . | . . . . . Reprogrammed . | . . . . . Reused . | . . . . . Traps Extracted . | . . . . . Installed . | . . . . . Triggered . | . . . . . Machines | -11 -10 -10 -10 -9 ---------- Run | Yrd Mat Min Exi Min Machines Disabled 1 | . . . . 1 Max in Single Turn 1 | . . . . 1 Machines Repaired . | . . . . . Machines Dismantled . | . . . . . Machines Sabotaged . | . . . . . Overloaded Fab Kills . | . . . . . Hacking | -11 -10 -10 -10 -9 --------- Run | Yrd Mat Min Exi Min Machines Accessed 6 | . 2 . 3 1 Terminals 2 | . 2 . . . Fabricators . | . . . . . Repair Stations . | . . . . . Recycling Units . | . . . . . Scanalyzers . | . . . . . Garrison Access . | . . . . . Total Hacks 11 | . 4 . 6 1 Successful 8 | . 1 . 6 1 Failed 3 | . 3 . . . Catastrophic . | . . . . . Database Lockouts . | . . . . . Manual 6 | . 4 . 2 . Terminals 4 | . 4 . . . Fabricators . | . . . . . Repair Stations . | . . . . . Recycling Units . | . . . . . Scanalyzers . | . . . . . Garrison Access . | . . . . . Terminal Hacks 8 | . 1 . 6 1 Record 5 | . . . 5 . Open Door 1 | . . . . 1 Branch Access Points 1 | . 1 . . . Derelict Proto ID Bank 1 | . . . 1 . Fabricator Hacks . | . . . . . Repair Station Hacks . | . . . . . Recycling Unit Hacks . | . . . . . Scanalyzer . | . . . . . Garrison Access Hacks . | . . . . . Unauthorized Hacks . | . . . . . Terminals . | . . . . . Fabricators . | . . . . . Repair Stations . | . . . . . Recycling Units . | . . . . . Scanalyzers . | . . . . . Garrison Access . | . . . . . Data Cores Recovered . | . . . . . Used . | . . . . . Hacking Detections 1 | . 1 . . . Full Trace Events 1 | . 1 . . . Feedback Events . | . . . . . Feedback Blocked . | . . . . . Robot Schematics Acquired . | . . . . . Robots Built . | . . . . . Authchips . | . . . . . Time . | . . . . . Total Robot Build Rating . | . . . . . Part Schematics Acquired . | . . . . . Parts Built . | . . . . . Authchips . | . . . . . Time . | . . . . . Total Part Build Rating . | . . . . . Parts Repaired . | . . . . . Time . | . . . . . Parts Recycled . | . . . . . Recycled Matter . | . . . . . Retrieved Matter . | . . . . . Retrieved Components . | . . . . . Parts Scanalyzed . | . . . . . Part Schematics Acquired . | . . . . . Parts Damaged . | . . . . . Bothacking | -11 -10 -10 -10 -9 ------------ Run | Yrd Mat Min Exi Min Used RIF Installer . | . . . . . Robots Hacked . | . . . . . Non-combat . | . . . . . Combat . | . . . . . Robot Hacks Applied . | . . . . . Relay Couplers Released . | . . . . . Fabnet Peak Effective % . | . . . . . Robots Rewired . | . . . . . Allies Hacked . | . . . . . Hacks Repelled . | . . . . . Allies | -11 -10 -10 -10 -9 -------- Run | Yrd Mat Min Exi Min Total Allies . | . . . . . Largest Group . | . . . . . Highest-Rated Group . | . . . . . Highest-Rated Ally . | . . . . . Total Orders . | . . . . . Ally Attacks . | . . . . . Total Damage . | . . . . . Kills . | . . . . . Allies Corrupted . | . . . . . Allies Melted . | . . . . . Intel | -11 -10 -10 -10 -9 ------- Run | Yrd Mat Min Exi Min Robot Analysis Total . | . . . . . Derelict Logs Recovered 1 | . . . . 1 Drone Launches . | . . . . . Drone Recoveries . | . . . . . Exploration | -11 -10 -10 -10 -9 ------------- Run | Yrd Mat Min Exi Min Turns Passed 2362 | 118 470 272 867 635 Spaces Moved 1195 | 49 237 169 464 276 Core 14 | 9 . . . 5 Treads 914 | 40 237 169 464 4 Legs 267 | . . . . 267 Wheels . | . . . . . Hover . | . . . . . Flight . | . . . . . Fastest Speed 50 | 50 160 160 160 160 Average Speed 169 | 152 160 160 160 201 Slowest Speed 550 | 200 160 160 160 550 Overloaded Moves . | . . . . . Propulsion Burnouts . | . . . . . Robots Hopped . | . . . . . Cave-ins Triggered . | . . . . . Exploration Rate (%) 43 | 4 46 33 73 61 Regions Visited 4 Branch Regions 3 Pre-discovered Areas 1 | . . . 1 . Known Exits Taken 1 | . 1 . . . Unknown Exits Taken 3 | 1 . 1 1 . Scrap Searched 2 | . . 1 . 1 Spaces Dug 24 | . . . . 24 Terrain Destroyed 44 | . . . . 44 Melee . | . . . . . Projectile . | . . . . . AOE 44 | . . . . 44 Terrain Rammed . | . . . . . Walls Destroyed . | . . . . . Machines Disabled . | . . . . . Actions | -11 -10 -10 -10 -9 --------- Run | Yrd Mat Min Exi Min Total 1437 | 69 279 171 590 328 Wait 140 | . 8 . 119 13 Move 1191 | 48 236 168 463 276 Hop . | . . . . . Pick Up 21 | 3 6 2 4 6 Fast Attach 9 | 7 . . . 2 Attach 7 | . . . . 7 Detach . | . . . . . Swap 7 | . 1 . 1 5 Drop 6 | . 1 1 3 1 Fire 56 | 11 27 . . 18 Melee . | . . . . . Ram . | . . . . . Kick . | . . . . . Crush . | . . . . . Escape Stasis . | . . . . . Rewire . | . . . . . Trap . | . . . . . Miscellaneous . | . . . . . Route ------- -11/Scrapyard -10/Materials (discovered 3 exits: [*Mat] / *Min x2) -10/Mines -10/Exiles (discovered 2 exits: *Min x2) -9/Mines (discovered 1 exit: [*Mat]) History --------- Turn | Location | Event 24 | -11/Scrapyard | Discovered new exit (range 14) 119 | -11/Scrapyard | Entered Materials 189 | -10/Materials | Identified exit to Mines 315 | -10/Materials | Build established: Mutant 375 | -10/Materials | Destroyed 10 combat bots 451 | -10/Materials | Discovered new exit (range 15) 589 | -10/Materials | Entered Mines 638 | -10/Mines | Received a Rocket Launcher from a helpful Derelict 853 | -10/Mines | Deemed a non-threat by the Exiles lab entrance 854 | -10/Mines | Discovered new exit (range 5) 861 | -10/Mines | Entered Exiles 911 | -10/Exiles | Discovered new exit (range 14) 948 | -10/Exiles | Met 8R-AWN 970 | -10/Exiles | Met EX-HEX 1055 | -10/Exiles | Met EX-DEC 1106 | -10/Exiles | Learned location of Zion (-7) 1204 | -10/Exiles | Discovered new exit (range 14) 1316 | -10/Exiles | Met EX-BIN 1345 | -10/Exiles | Aligned with FarCom system 1346 | -10/Exiles | Given EX-Vault access code 1436 | -10/Exiles | Opened EX-Vault 1446 | -10/Exiles | Found Prototype Processor 1450 | -10/Exiles | Found Prototype Device 1457 | -10/Exiles | Identified Modified TNC 1457 | -10/Exiles | Identified Cloak of Protection 1489 | -10/Exiles | Warned to stay clear of 0b10 Research branches 1503 | -10/Exiles | Exiles lab attacked by MAIN.C 1728 | -10/Exiles | Stole two prototypes: Modified TNC, Cloak of Protection 1728 | -10/Exiles | Entered Mines 1789 | -9/Mines | Lost 5 parts (1p2n2w) 1813 | -9/Mines | Learned Materials stockpile data 1923 | -9/Mines | Discovered new exit (range 9) 1939 | -9/Mines | Met a Derelict shopkeep closing up shop 2093 | -9/Mines | Build established: Skirmisher 2274 | -9/Mines | Assembled infested the area 2306 | -9/Mines | Core integrity fell below 50% 2352 | -9/Mines | Core integrity fell below 20% 2363 | -9/Mines | Destroyed self with Fission Core chain reaction Last Messages --------------- K-01 Serf collects debris. ALERT: Infestation in the mines, dispatching Demolisher response squad. Knocked back. Aluminum Leg destroyed. System corrupted by crushing effect (+2). Knocked back. as-66465 destroyed. as-81002 destroyed. The unstable cave ceiling collapses. BA0C1VXFYS 2=KPY61F15SLFGV N FEN Grenade Launcher destroyed. Sensor Array destroyed. Aluminum Leg destroyed. Dropped Rigged Fission Core. Sml. Laser destroyed. The unstable cave ceiling collapses. as-96039 destroyed. as-86747 destroyed. Destroyed Asb. Hover Unit. Chain reaction triggered in Rigged Fission Core. Map ----- +----------------------------------------------------+ | ????????????#####?####???????# ## #??????# /# | | ??????????### ### ##??????# #### #??????# # | | ########### #####??# #??# #?????## %# | | #### #### ##???##= # | | ##?## # | | ### ##### ### | | ????# ##### # ### | | ????# ## #?# ### | | ????# ###### ## #### #?## ##?## | | ???????????## #######??# #??## ##???## # | | ????????????# #### ##????????# #???#####?????#### | | ????????????# #??####?????????# #????????????????? | | ????????????# #???????????????# #??########??????? | | ????????????# #???????????????# #??# ###????? | | ????????????# #???????????????# #??# # ##???? | | ????????????# #############???# #### # ##???? | | ????????????# #???# " # #???? | | ????????????############# #???# #### # #???? | | ????????????????????????# #???# #??# # #???? | | ????????????????????????# ##### #??# = #???? | | ????????????????????????# #??# ##???? | | ????????????????????????# ##### #??# ###????? | | ????????????????????????# #???# ##?# #??????? | | ???????????????????????## #???# #?########??????? | | ??????????????????###### ##??## #?####??????????? | | ?????????????????## @ ;#### ### ##?????????? | | ?????????????????# ## ##????????? | | ?????????????????# ##???????? | | ????????????????## #??###??? | | ????????????????# ### ##?? | | ???????????????# a ## #?? | | ????????????# ## ### #?? | | ????????????# #### ##?## ##?? | | ????????????#############?## # #??# #??? | | ??????????#####??????????## # #??# ##?? | | ??????????# #??????????# #??# ## ##? | | ??????????# ###???????## # #??# ### ## | | ??????????# ##?###### %% ##### #?## # | | ????????### ### ## =* #??## # | | ???????## ## ##### #???# # ## | | ??????## #######?## ##??# ####? | | ??????# ##?####### #??# #???? | | ??????# ######### #### ## #?## ##??? | | ??????# ?????????# ## #?# #??? | | ?????# ?????????# #?# #??? | | ???? ??????????# ## ##?# #??? | | ?? ??????????# ######### ##?# #??? | | ? ???????????# ##???????######??### ##??? | | # ?????????????# #??????????????????####???? | | #??????????????## ##?????????????????????????? | +----------------------------------------------------+ Best States ------------- Heat Dissipation 25 Energy Generation 16 Energy Capacity 290 Matter Stores 300 Matter Capacity 300 Sight Range 16 Robot Scan Range 14 Terrain Scan Density 10 Armor Coverage 150 Evasion (%) 40 Recoil Reduction 2 Item Schematics ----------------- None Robot Schematics ------------------ None Fabricated ------------ Nothing Alien Tech Used ----------------- None Achievements -------------- None Challenges ------------ None Game ------ Seed ActiveAntimatterNanovents Manual? 0 Play Time 00:22:22 Cumulative 19.3 hours Start 2024.05.03 @ 14:27:17 End 2024.05.03 @ 14:48:39 Sessions 1 Manual Loads 0 Difficulty Rogue Special Mode None Game No. 43 Rogue 35 Adventurer 8 Explorer 0 Win Type - Total 0 Types 0/0/0/0/0/0/0/0/0 Lore% 8 Gallery% 24 Achievement% 19 Wizard Run 0 Options --------- Layout 0 ASCII 0 Keyboard 0 Movement Mouse Keybinds 0 Fullscreen 2 Font 18/SmallcapsGlow Map View 76x50 Zoom Use 53% Tactical HUD 0 Map Filters NONE Filters NONE Steam 1 RUN: 9f8cd623-8329-4c27-8562-3792427c8336